bitfinex-derivatives/quotes_ETHF0:USTF0_20250224
["timestamp","ask_amount","ask_price","bid_price","bid_amount"]
[1740427197499,0.00567999,2642.1,2642.0,3.367]
[1740427197999,0.76262999,2642.1,2642.0,3.367]
[1740427199504,0.00567999,2642.1,2642.0,3.367]
[1740427199797,0.00567999,2642.1,2642.0,4.12398]
[1740427199997,0.00567999,2642.1,2642.0,7.33178]
[1740427200204,9.99e-06,2642.1,2642.0,13.33178]
[1740427200404,2.1889,2643.2,2643.0,0.7567]
[1740427200901,0.7567,2643.0,2642.9,3.366]
[1740427201099,2.1889,2643.2,2642.9,7.3305]
[1740427201401,2.1889,2643.2,2642.9,6.5738]
[1740427201702,0.00246803,2643.3,2643.2,0.75664]
[1740427202003,0.7567,2643.0,2642.9,3.366]
[1740427202197,1.0536,2643.7,2642.9,3.366]
[1740427202198,3.2078,2643.9,2642.9,3.366]
[1740427202398,3.2078,2644.3,2643.0,3.2078]
[1740427202604,3.2078,2644.0,2643.1,3.366]
[1740427202802,0.75654,2643.6,2643.1,4.12266]
[1740427203003,1.1442,2643.9,2643.2,3.2078]
[1740427203305,3.2078,2643.7,2643.2,3.2078]
[1740427203603,0.75672,2642.9,2642.8,0.00567999]
[1740427203806,0.75672,2642.9,2642.8,3.37067999]
[1740427203999,0.75672,2642.9,2642.8,0.00567999]
[1740427204200,0.75672,2642.9,2641.9,3.2756]
[1740427204201,6.0,2642.9,2641.9,3.2078]
[1740427204402,0.75698,2642.0,2641.9,3.2078]
[1740427204596,1.89218,2642.4,2641.6,20.992]
[1740427204597,0.75707,2641.7,2641.6,24.1998]
[1740427204806,1.89259,2641.9,2641.3,3.2078]
[1740427205100,1.89259,2641.9,2641.5,3.365]
[1740427205101,0.7571,2641.6,2641.5,3.365]
[1740427205294,0.00567999,2641.9,2641.3,3.21347999]
[1740427205902,0.75715,2641.4,2641.3,3.21347999]
[1740427206110,3.96495,2641.4,2641.3,0.00567999]
[1740427206405,4.2713,2641.7,2641.3,0.00567999]
[1740427206701,0.75713,2641.5,2641.4,3.365]
[1740427207106,0.75715,2641.4,2641.3,0.00567999]
[1740427207901,0.75715,2641.4,2640.3,21.0608]
[1740427207902,6.0,2641.4,2640.5,3.365]
[1740427208094,3.78567,2641.5,2640.5,3.365]
[1740427208095,0.75738,2640.6,2640.5,3.365]
[1740427208902,0.75744,2640.4,2640.3,20.993]
[1740427209098,0.75744,2640.4,2640.3,20.99867999]
[1740427209503,1.1265,2640.8,2640.3,20.99867999]
[1740427209707,0.75744,2640.4,2640.3,20.99867999]
[1740427210201,0.75744,2640.4,2640.3,0.00567999]
[1740427210404,3.2078,2640.6,2639.6,3.2078]
[1740427210706,0.75764,2639.7,2639.6,6.5728]
[1740427211099,0.75764,2639.7,2639.6,3.2078]
[1740427211302,2.95209,2640.1,2639.0,20.995]
[1740427211303,3.2078,2639.9,2639.5,3.365]
[1740427211500,0.75767,2639.6,2639.5,3.365]
[1740427211900,0.7577,2639.5,2639.4,0.00567999]
[1740427212602,0.75779,2639.2,2639.1,3.365]
[1740427213306,1.0704,2639.7,2639.1,3.365]
[1740427213505,0.75778,2639.3,2639.1,3.365]
[1740427213698,0.75779,2639.2,2639.1,3.365]
[1740427214311,1.0704,2639.7,2639.1,3.365]
[1740427214500,0.75779,2639.2,2639.1,3.365]
[1740427215211,0.75784,2639.0,2638.9,0.00567999]
[1740427215605,1.0781,2639.1,2638.7,3.2078]
[1740427215804,0.7579,2638.8,2638.7,3.2078]
[1740427216102,1.0781,2639.1,2638.7,3.2078]
[1740427216308,1.0781,2639.1,2638.7,3.96571]
[1740427216309,0.75786,2639.0,2638.7,3.96571]
[1740427216608,1.0781,2639.1,2638.8,3.366]
[1740427216805,3.2078,2639.6,2639.0,3.2078]
[1740427217199,0.75787,2638.9,2638.8,3.366]
[1740427218404,0.7579,2638.8,2638.7,3.2078]
[1740427219007,1.078,2639.0,2638.7,3.2078]
[1740427219212,1.0594,2639.2,2638.7,3.2078]
[1740427219415,0.75777,2639.3,2639.0,3.96563]
[1740427219714,0.75779,2639.2,2639.1,3.366]
[1740427219909,0.75793,2638.7,2638.6,0.00567999]
[1740427220109,3.2078,2639.9,2638.6,5.26652999]
[1740427220408,3.21347999,2640.0,2639.2,3.2078]
[1740427220610,1.89397,2639.9,2639.3,3.366]
[1740427220812,3.21347999,2640.0,2639.4,3.366]
[1740427221013,1.0487,2639.9,2639.4,3.366]
[1740427221408,0.75768,2639.6,2639.4,3.366]
[1740427221816,0.7577,2639.5,2639.4,3.366]
[1740427222315,2.1862,2639.9,2639.4,3.366]
[1740427222515,0.7577,2639.5,2639.4,3.366]
[1740427223009,3.2078,2639.8,2639.2,3.366]
[1740427223208,0.75776,2639.3,2639.2,3.366]
[1740427223613,3.2078,2639.7,2639.2,3.366]
[1740427223910,2.1862,2639.9,2639.8,0.75761]
[1740427224115,0.00567999,2640.0,2639.6,3.366]
[1740427224307,0.76324999,2640.0,2639.7,0.75763]
[1740427224508,0.76323999,2640.0,2639.7,0.75764]
[1740427224709,0.76323999,2640.0,2639.7,34.45764]
[1740427225011,1.0811,2640.7,2639.7,34.45764]
[1740427225012,3.2078,2641.4,2639.9,3.2078]
[1740427225208,1.0811,2641.3,2641.2,0.75721]
[1740427225512,5.4119,2642.1,2640.9,3.2078]
[1740427225822,3.96494,2641.5,2641.2,0.7572]
[1740427226009,2.2041,2642.1,2641.0,3.366]
[1740427226010,5.4119,2642.1,2641.0,3.366]
[1740427226212,3.2078,2642.1,2641.2,5.10079]
[1740427226409,0.00567999,2641.8,2641.5,3.2078]
[1740427226609,0.00567999,2641.8,2641.6,4.12308]
[1740427227418,0.00567999,2641.8,2641.6,3.366]
[1740427227715,0.00567999,2641.8,2641.5,3.2078]
[1740427227716,0.00567999,2641.8,2641.7,3.365]
[1740427228112,0.76271999,2641.8,2641.7,3.365]
[1740427228316,0.76272999,2641.8,2641.7,3.365]
[1740427229921,0.7571,2641.6,2641.5,3.2078]
[1740427231218,0.7571,2641.6,2641.1,21.01667999]
[1740427231219,0.75718,2641.3,2641.2,3.2078]
[1740427231912,0.75718,2641.4,2641.2,3.2078]
[1740427232311,3.21347999,2641.8,2641.2,3.2078]
[1740427232312,0.75718,2641.3,2641.2,3.2078]
[1740427232910,0.75709,2641.7,2641.3,0.75716]
[1740427233110,0.00567999,2641.8,2641.3,3.2078]
[1740427233311,0.75715,2641.4,2641.3,3.2078]
[1740427233608,0.7571,2641.6,2641.3,3.96496]
[1740427233806,0.00567999,2641.8,2641.3,3.2078]
[1740427234012,0.75715,2641.4,2641.3,3.2078]
[1740427234321,0.00567999,2641.8,2641.3,6.5718]
[1740427234514,0.00567999,2641.8,2641.3,7.32896]
[1740427234713,0.75715,2641.4,2641.3,6.5718]
[1740427234907,0.00567999,2641.8,2641.3,7.32898]
[1740427235115,0.76273999,2641.8,2641.6,0.75709]
[1740427235412,0.75715,2641.4,2641.3,6.5718]
[1740427235614,0.00567999,2641.8,2641.3,6.5718]
[1740427235818,0.00567999,2641.8,2641.7,0.75707]
[1740427236011,0.00567999,2641.8,2641.7,4.12107]
[1740427236417,0.75682,2642.6,2641.7,10.12107]
[1740427236615,0.7568,2642.7,2642.1,3.2078]
[1740427236809,0.75688,2642.4,2642.2,3.363]
[1740427237314,4.3143,2643.0,2642.2,3.363]
[1740427237513,2.2332,2643.3,2642.7,3.2078]
[1740427237720,3.2078,2643.7,2643.2,3.2078]
[1740427237918,0.76228999,2643.3,2643.2,3.363]
[1740427238115,0.00567999,2643.3,2643.2,3.36867999]
[1740427238521,0.00567999,2643.3,2643.2,4.12531999]
[1740427239221,0.00567999,2643.3,2643.2,10.12531999]
[1740427239420,0.75645,2643.9,2643.2,9.36867999]
[1740427239724,0.75648,2643.8,2643.5,3.96434]
[1740427239924,0.75647,2643.8,2643.5,3.2078]
[1740427240125,0.75642,2644.0,2643.5,3.2078]
[1740427240416,1.1532,2644.3,2643.8,3.2078]
[1740427240619,0.75636,2644.2,2643.9,4.11843]
[1740427240821,0.00567999,2644.0,2643.9,3.362]
[1740427241325,0.00567999,2644.0,2643.9,4.11844]
[1740427241826,0.76208999,2644.0,2643.9,3.362]
[1740427242227,0.75644,2643.9,2643.8,3.2078]
[1740427242617,0.7565,2643.7,2643.6,24.356]
[1740427243220,0.75661,2643.3,2643.2,0.00567999]
[1740427243428,0.75672,2642.9,2642.8,3.361]
[1740427243625,0.75678,2642.7,2642.6,3.361]
[1740427243821,3.2078,2643.1,2642.6,3.361]
[1740427244121,1.1303,2643.7,2642.8,3.2078]
[1740427244334,1.1303,2643.7,2643.1,3.2078]
[1740427244628,4.3381,2643.7,2643.2,3.361]
[1740427244924,4.3381,2643.7,2643.3,0.75659]
[1740427245121,0.00567999,2644.0,2643.2,6.5688]
[1740427245318,0.75651,2643.7,2643.4,0.75657]
[1740427245520,0.7565,2643.7,2643.5,3.2078]
[1740427245722,0.7565,2643.7,2643.6,3.361]
[1740427246030,0.75648,2643.8,2643.6,3.361]
[1740427246223,0.00567999,2644.0,2643.6,3.361]
[1740427246728,0.00567999,2644.0,2643.9,0.75644]
[1740427246920,0.00567999,2644.0,2643.8,3.96424]
[1740427247120,0.00567999,2644.0,2643.8,3.2078]
[1740427247320,0.76209999,2644.0,2643.8,3.2078]
[1740427248118,0.00567999,2644.0,2643.5,3.2078]
[1740427248323,0.75652,2643.6,2643.5,6.5688]
[1740427248525,0.75652,2643.6,2643.5,3.361]
[1740427248731,1.89670999,2644.0,2643.5,3.361]
[1740427249029,0.7565,2643.7,2643.5,3.361]
[1740427249225,0.00567999,2644.0,2643.5,3.361]
[1740427249727,0.75652,2643.7,2643.5,3.361]
[1740427249924,1.89673999,2644.0,2643.3,20.985]
[1740427249925,0.75658,2643.4,2643.3,20.985]
[1740427250128,0.75658,2643.4,2643.3,24.345]
[1740427251031,0.75658,2643.4,2643.3,3.36]
[1740427251230,0.75658,2643.4,2643.0,0.00567999]
[1740427251231,0.75667,2643.1,2643.0,0.00567999]
[1740427251428,0.75684,2642.5,2642.4,27.5508]
[1740427251622,5.09949,2643.1,2642.4,24.343]
[1740427251924,5.09949,2643.1,2642.6,0.75681]
[1740427252334,3.2078,2643.1,2643.0,0.7567]
[1740427252523,2.1008,2643.5,2643.0,0.75667]
[1740427252722,0.75672,2642.9,2642.8,3.36]
[1740427252919,0.75663,2643.3,2642.8,3.36]
[1740427253125,0.75663,2643.3,2643.0,3.2078]
[1740427253325,0.75667,2643.1,2643.0,3.2078]
[1740427253823,1.89168,2643.1,2642.6,3.21347999]
[1740427254027,0.75675,2642.8,2642.7,3.36]
[1740427254829,3.2078,2643.3,2642.7,3.36]
[1740427255036,0.75675,2642.8,2642.7,3.36]
[1740427257632,2.1008,2643.5,2642.7,3.36]
[1740427257837,2.1008,2643.5,2643.0,3.2078]
[1740427258038,0.75662,2643.3,2643.1,4.11666]
[1740427258427,0.75664,2643.2,2643.1,3.36]
[1740427258738,0.75672,2642.9,2642.8,3.359]
[1740427258927,3.2078,2643.4,2642.6,3.21347999]
[1740427259129,0.75678,2642.7,2642.6,6.57247999]
[1740427259537,0.75678,2642.7,2642.6,7.32928999]
[1740427259738,1.89165,2643.2,2642.6,7.32926999]
[1740427259934,0.75676,2642.8,2642.6,6.57247999]
[1740427260130,0.75678,2642.7,2642.6,6.57247999]
[1740427260526,1.8916,2643.2,2642.6,6.57247999]
[1740427260727,3.2078,2643.4,2642.6,8.46448999]
[1740427260932,0.7567,2643.0,2642.9,3.2078]
[1740427261132,0.75669,2643.1,2642.9,3.96451]
[1740427261332,1.89098,2644.1,2643.0,3.359]
[1740427261533,3.2078,2644.3,2643.5,3.2078]
[1740427261841,3.2078,2644.3,2643.1,1.89165]
[1740427261842,0.7565,2643.7,2643.6,3.359]
[1740427263242,3.9643,2643.7,2643.6,3.359]
[1740427263539,3.9643,2643.7,2643.3,3.359]
[1740427263540,0.75658,2643.4,2643.3,3.359]
[1740427263742,1.89132,2643.6,2643.3,3.359]
[1740427263743,3.2078,2643.7,2643.3,3.359]
[1740427264046,0.75658,2643.4,2643.3,3.359]
[1740427264243,3.21347999,2644.0,2643.3,3.359]
[1740427264639,0.75657,2643.5,2643.3,3.359]
[1740427264842,0.75658,2643.4,2643.3,3.359]
[1740427265041,0.75657,2643.5,2643.3,3.359]
[1740427265241,0.75654,2643.6,2643.3,3.359]
[1740427265438,0.00567999,2644.0,2643.5,3.2078]
[1740427265637,0.75648,2643.8,2643.5,3.2078]
[1740427265844,0.7565,2643.7,2643.5,3.2078]
[1740427266241,0.00567999,2644.0,2643.5,9.2078]
[1740427266547,0.00567999,2644.0,2643.8,3.2078]
[1740427266862,0.00567999,2644.0,2643.9,3.359]
[1740427268761,0.00567999,2644.0,2643.9,9.359]
[1740427269662,0.00567999,2644.0,2643.9,3.359]
[1740427270558,0.00567999,2644.0,2643.9,9.359]
[1740427270758,0.00567999,2644.0,2643.9,14.26800895]
[1740427271256,1.0386,2644.9,2643.9,47.96800895]
[1740427271457,1.0386,2644.9,2644.6,3.2078]
[1740427271662,1.0386,2644.9,2644.0,3.2078]
[1740427271860,1.0386,2644.9,2644.1,3.358]
[1740427272062,1.0386,2644.9,2644.3,3.2078]
[1740427272266,3.2078,2645.0,2644.3,3.2078]
[1740427272659,0.00567999,2644.9,2644.3,3.21347999]
[1740427273064,0.00567999,2644.9,2644.6,3.2078]
[1740427273261,0.00567999,2644.9,2644.7,3.358]
[1740427275060,0.00567999,2644.9,2644.6,3.2078]
[1740427275061,0.00567999,2644.9,2644.8,3.357]
[1740427276266,0.00567999,2644.9,2644.8,9.357]
[1740427276470,0.00567999,2644.9,2644.8,35.26172533]
[1740427276663,1.0835,2645.7,2644.8,35.26172533]
[1740427276972,2.183,2646.1,2645.3,3.2078]
[1740427277267,3.2078,2645.9,2645.4,3.357]
[1740427277466,2.183,2646.1,2645.4,3.357]
[1740427277661,3.2078,2645.9,2645.4,3.357]
[1740427277867,0.00567999,2646.0,2645.4,3.357]
[1740427278057,0.00567999,2646.0,2645.6,3.2078]
[1740427278257,0.00567999,2646.0,2645.5,4.8693478]
[1740427278463,3.2078,2645.9,2645.4,3.357]
[1740427279065,0.00567999,2646.0,2645.4,6.339]
[1740427279367,0.00567999,2646.0,2645.6,3.2078]
[1740427281866,0.00567999,2646.0,2645.9,3.2078]
[1740427282074,0.00567999,2646.0,2645.9,6.5638]
[1740427284164,0.00567999,2646.0,2645.9,12.5638]
[1740427285676,1.0835,2646.7,2645.9,17.49604705]
[1740427285975,1.0835,2646.7,2646.4,3.2078]
[1740427286173,1.0835,2646.7,2646.5,3.355]
[1740427287571,0.0056435,2646.9,2646.5,3.355]
[1740427287772,0.0056435,2646.9,2646.7,3.2078]
[1740427288476,0.0056435,2646.9,2646.7,3.50517659]
[1740427288981,0.0056435,2646.9,2646.7,3.2078]
[1740427289776,0.0056435,2646.9,2646.8,3.354]
[1740427290274,1.0988435,2646.9,2646.8,3.354]
[1740427290974,0.0056435,2646.9,2646.8,3.354]
[1740427295377,0.0056435,2646.9,2646.7,3.2078]
[1740427295574,0.0056435,2646.9,2646.8,3.353]
[1740427295981,1.1727435,2646.9,2646.8,3.353]
[1740427297780,0.0056435,2646.9,2646.8,3.353]
[1740427299178,0.0056435,2646.9,2646.4,3.2078]
[1740427299481,0.0056435,2646.9,2646.5,3.353]
[1740427300980,0.0056435,2646.9,2646.5,6.335]
[1740427301181,0.0056435,2646.9,2646.7,3.2078]
[1740427308986,0.0056435,2646.9,2646.8,4.96507429]
[1740427309985,0.0056435,2646.9,2646.8,38.66507429]
[1740427310487,0.0056435,2646.9,2646.8,33.7]
[1740427310680,0.0056435,2646.9,2646.7,3.2078]
[1740427310883,0.0056435,2646.9,2646.7,6.5588]
[1740427311690,0.0056435,2646.9,2646.5,3.351]
[1740427311894,3.2078,2646.7,2646.5,3.351]
[1740427312282,0.75567,2646.6,2646.5,3.351]
[1740427312888,0.75567,2646.6,2645.8,36.9078]
[1740427312889,0.75587,2645.9,2645.8,24.1598]
[1740427313079,0.75587,2645.9,2645.8,20.952]
[1740427313282,0.75587,2645.9,2645.8,58.003]
[1740427313482,0.75587,2645.9,2645.8,20.952]
[1740427313686,0.75589,2645.8,2645.7,0.00566904]
[1740427313986,3.96369,2645.8,2645.7,0.00566904]
[1740427315188,3.96369,2645.8,2645.7,9.04e-06]
[1740427315593,9.96369,2645.8,2645.7,9.04e-06]
[1740427316683,3.96369,2645.8,2645.7,9.04e-06]
[1740427317990,9.96369,2645.8,2645.7,9.04e-06]
[1740427320294,3.96369,2645.8,2645.7,9.04e-06]
[1740427320485,9.96369,2645.8,2645.7,9.04e-06]
[1740427320687,9.96369,2645.8,2644.8,33.7]
[1740427320688,0.75621,2644.7,2643.9,3.352]
[1740427320886,1.89072,2644.5,2643.9,3.352]
[1740427321189,5.09835,2644.7,2643.9,3.352]
[1740427321190,3.2078,2644.7,2643.9,3.352]
[1740427321385,1.89046,2644.9,2644.1,3.2078]
[1740427321589,0.75644,2643.9,2643.8,3.2078]
[1740427321793,3.78164,2644.3,2643.3,27.71642897]
[1740427322094,0.7565,2643.7,2643.6,0.00566904]
[1740427322482,3.9643,2643.7,2643.6,0.00566904]
[1740427322693,0.7565,2643.7,2643.6,0.00566904]
[1740427323794,3.2078,2644.0,2643.6,0.00566904]
[1740427323989,0.7565,2643.7,2643.6,0.00566904]
[1740427324389,3.9643,2643.7,2643.6,0.00566904]
[1740427325293,3.9643,2643.7,2643.6,9.04e-06]
[1740427328995,3.9643,2643.7,2643.6,33.70000904]
[1740427329199,3.2078,2643.7,2643.6,34.45652904]
[1740427329503,0.00566904,2644.1,2643.8,0.75644]
[1740427329695,0.75641,2644.0,2643.9,3.353]
[1740427329889,0.75641,2644.0,2643.6,33.70000904]
[1740427329890,0.7565,2643.7,2643.6,33.70000904]
[1740427330293,3.2078,2643.8,2643.6,33.70000904]
[1740427330497,0.7565,2643.7,2643.6,33.70000904]
[1740427330693,0.00566904,2644.1,2643.6,33.70000904]
[1740427330899,0.00566904,2644.1,2643.6,36.90780904]
[1740427331101,0.75647,2643.8,2643.6,37.66431904]
[1740427331407,0.00566904,2644.1,2643.6,36.90780904]
[1740427331598,0.76206904,2644.1,2643.8,0.75646]
[1740427331793,0.00566904,2644.1,2644.0,0.75641]
[1740427331998,1.89053,2644.7,2643.9,6.5608]
[1740427332199,0.7564,2644.1,2643.9,3.353]
[1740427332500,0.75633,2644.3,2643.9,6.5608]
[1740427332699,5.09827,2644.8,2643.9,6.5608]
[1740427332902,3.96402,2644.7,2644.4,0.75628]
[1740427333203,0.00566904,2644.6,2644.5,4.10927]
[1740427333902,3.2078,2645.0,2644.5,3.353]
[1740427334103,3.2078,2645.0,2644.9,0.75615]
[1740427334300,2.2095,2645.5,2644.9,3.353]
[1740427334301,2.96549,2645.5,2644.9,3.353]
[1740427334494,3.2078,2645.6,2644.9,3.353]
[1740427334697,0.75612,2645.0,2644.9,3.353]
[1740427335099,0.00563446,2645.2,2644.7,0.00566904]
[1740427335295,0.75612,2645.0,2644.9,3.353]
[1740427335702,0.00563446,2645.2,2645.1,0.75609]
[1740427335900,0.76170446,2645.2,2645.1,3.2078]
[1740427336104,0.75615,2644.9,2644.8,3.2078]
[1740427336302,0.75615,2644.9,2644.8,6.5608]
[1740427336906,1.89586446,2645.2,2644.7,0.00566904]
[1740427336907,1.89031,2645.1,2644.7,0.00566904]
[1740427337101,3.01896446,2645.2,2644.8,3.353]
[1740427337306,3.01896446,2645.2,2644.8,6.5608]
[1740427337307,0.00563446,2645.2,2644.8,6.5608]
[1740427337799,0.00563446,2645.2,2644.9,1.1336]
[1740427338109,0.75615,2644.9,2644.8,3.2078]
[1740427338305,0.75615,2644.9,2644.8,3.353]
[1740427338999,3.01341,2645.1,2644.7,0.00566904]
[1740427339307,0.75618,2644.8,2644.7,0.00566904]
[1740427340904,3.2078,2644.9,2644.7,0.00566904]
[1740427341300,3.96398,2644.9,2644.8,0.75618]
[1740427341501,0.75618,2644.8,2644.7,0.76184904]
[1740427341805,0.00563446,2645.2,2644.9,0.75613]
[1740427342003,0.76170446,2645.2,2645.1,0.75609]
[1740427342206,0.00563446,2645.2,2645.1,0.75609]
[1740427342912,0.76170446,2645.2,2645.0,7.3159]
[1740427343113,0.00563446,2645.2,2645.0,6.5598]
[1740427343314,0.76170446,2645.2,2645.0,7.3159]
[1740427343615,0.00563446,2645.2,2645.0,6.5598]
[1740427344108,0.00563446,2645.2,2645.1,0.75609]
[1740427344406,0.00563446,2645.2,2645.1,1.87869]
[1740427344606,0.75587,2645.9,2645.7,0.75591]
[1740427344805,0.75589,2645.8,2645.7,3.352]
[1740427347404,5.4217,2646.3,2645.7,3.352]
[1740427347610,3.2078,2646.6,2645.9,3.2078]
[1740427347915,1.88924,2646.5,2645.9,3.2078]
[1740427348210,0.7558,2646.2,2646.0,3.96929904]
[1740427348412,0.7558,2646.2,2646.1,3.351]
[1740427350010,1.0687,2646.5,2646.1,3.351]
[1740427350211,0.75578,2646.2,2646.1,3.351]
[1740427350612,0.75576,2646.3,2646.1,4.1068]
[1740427350916,3.03687,2646.8,2646.3,0.75573]
[1740427351114,1.1478,2646.8,2646.3,3.2078]
[1740427351314,0.75572,2646.4,2646.3,3.2078]
[1740427351515,0.75578,2646.2,2646.1,3.351]
[1740427352410,0.75581,2646.1,2646.0,0.00566904]
[1740427353217,1.92911,2646.1,2646.0,0.00566904]
[1740427353411,1.92911,2646.1,2646.0,9.04e-06]
[1740427353607,7.92911,2646.1,2646.0,9.04e-06]
[1740427354917,1.92911,2646.1,2646.0,9.04e-06]
[1740427356115,7.92911,2646.1,2646.0,9.04e-06]
[1740427356319,7.87554962,2646.1,2644.3,33.7]
[1740427356518,0.75632,2644.3,2644.2,3.2078]
[1740427356818,0.75632,2644.3,2644.2,6.5578]
[1740427357014,0.75632,2644.3,2644.2,40.2578]
[1740427357221,0.75641,2644.0,2643.9,3.2078]
[1740427357516,0.75638,2644.1,2644.0,0.00566904]
[1740427357820,0.75638,2644.1,2644.0,9.04e-06]
[1740427358016,1.93278,2644.1,2644.0,9.04e-06]
[1740427358622,0.75638,2644.1,2644.0,9.04e-06]
[1740427359114,6.75638,2644.1,2644.0,9.04e-06]
[1740427359823,0.75638,2644.1,2644.0,9.04e-06]
[1740427360315,6.75638,2644.1,2644.0,9.04e-06]
[1740427360926,10.10638,2644.1,2644.0,9.04e-06]
[1740427361116,10.16990602,2644.1,2644.0,9.04e-06]
[1740427361414,10.16988727,2644.1,2644.0,9.04e-06]
[1740427361620,0.75638,2644.1,2644.0,9.04e-06]
[1740427361821,6.75638,2644.1,2644.0,9.04e-06]
[1740427362520,0.75638,2644.1,2644.0,9.04e-06]
[1740427364423,6.75638,2644.1,2644.0,9.04e-06]
[1740427364622,0.75638,2644.1,2644.0,9.04e-06]
[1740427364921,6.75638,2644.1,2644.0,9.04e-06]
[1740427365122,0.75638,2644.1,2644.0,9.04e-06]
[1740427365522,6.75638,2644.1,2644.0,9.04e-06]
[1740427366028,0.75638,2644.1,2644.0,9.04e-06]
[1740427367320,3.96418,2644.1,2644.0,9.04e-06]
[1740427367828,0.75638,2644.1,2644.0,9.04e-06]
[1740427368724,3.21346904,2644.5,2644.0,9.04e-06]
[1740427368919,0.00566904,2644.5,2644.0,9.04e-06]
[1740427369420,0.75638,2644.1,2644.0,9.04e-06]
[1740427370523,0.00566904,2644.5,2644.0,9.04e-06]
[1740427371029,0.00566904,2644.5,2644.2,3.2078]
[1740427371224,0.00566904,2644.5,2644.3,4.5334]
[1740427371629,0.00566904,2644.5,2644.4,0.7563]
[1740427371828,0.00566904,2644.5,2644.3,4.5334]
[1740427372031,0.00566904,2644.5,2644.4,0.7563]
[1740427372215,0.7563,2644.4,2644.3,4.5334]
[1740427372423,0.00566904,2644.5,2644.4,0.7563]
[1740427373327,1.88983,2645.7,2645.0,0.75611]
[1740427373627,0.756,2645.5,2645.2,0.75605]
[1740427373824,1.8896,2646.0,2645.4,3.2078]
[1740427374021,0.75587,2645.9,2645.5,3.351]
[1740427374229,3.2078,2646.1,2645.6,0.75594]
[1740427374432,3.2078,2646.1,2645.5,3.351]
[1740427374433,0.75595,2645.6,2645.5,3.351]
[1740427374618,0.75587,2645.9,2645.5,3.351]
[1740427374823,0.00566,2646.1,2645.7,3.2078]
[1740427375023,0.76148,2646.1,2645.8,0.75589]
[1740427375222,0.00566,2646.1,2645.9,4.524]
[1740427375418,0.75584,2646.0,2645.9,4.524]
[1740427375632,0.76148,2646.1,2645.9,4.524]
[1740427375925,0.00566,2646.1,2646.0,3.96364]
[1740427376827,0.75566,2646.7,2646.4,0.75571]
[1740427377119,3.2078,2647.0,2646.5,3.351]
[1740427377120,0.75567,2646.6,2646.5,3.351]
[1740427379724,0.75572,2646.4,2646.3,3.2078]
[1740427379929,0.75572,2646.4,2646.3,6.5578]
[1740427380130,0.75572,2646.4,2646.3,3.2078]
[1740427380329,1.88917,2646.6,2646.3,3.35]
[1740427380630,0.75572,2646.4,2646.3,3.349]
[1740427381427,3.2078,2647.0,2646.3,6.5568]
[1740427381627,1.88882,2647.1,2646.3,6.5568]
[1740427381824,0.75572,2646.4,2646.3,6.5568]
[1740427382024,3.2078,2647.0,2646.3,6.5568]
[1740427382228,1.88879,2647.2,2646.6,3.2078]
[1740427382530,0.75561,2646.8,2646.7,3.349]
[1740427387234,0.75564,2646.7,2646.6,9.04e-06]
[1740427387430,3.96344,2646.7,2646.6,9.04e-06]
[1740427387728,3.96344,2646.7,2645.6,3.2078]
[1740427387729,0.75592,2645.7,2645.6,3.2078]
[1740427387925,0.75592,2645.7,2645.6,6.5558]
[1740427388127,0.75592,2645.7,2645.6,3.348]
[1740427388325,0.75601,2645.4,2645.3,3.348]
[1740427389030,0.756,2645.5,2645.3,4.10401]
[1740427389237,0.00566904,2645.6,2645.3,4.10401]
[1740427389238,0.00566904,2645.6,2645.5,0.75598]
[1740427389536,0.00566904,2645.6,2645.5,3.96378]
[1740427390032,3.2078,2646.5,2645.6,1.88984]
[1740427390238,0.75581,2646.1,2646.0,3.96363]
[1740427390430,3.2078,2646.5,2646.0,6.5558]
[1740427390924,3.2078,2646.8,2646.3,3.2078]
[1740427391125,3.2078,2646.8,2646.6,0.75564]
[1740427391126,3.96342,2646.8,2646.6,0.75564]
[1740427391327,3.2078,2646.8,2646.4,3.348]
[1740427391728,3.2078,2647.1,2646.4,3.348]
[1740427391932,4.3769,2647.4,2646.6,3.2078]
[1740427392135,1.1444,2647.5,2646.9,3.2078]
[1740427392327,0.7554,2647.6,2647.2,3.2078]
[1740427392528,0.75544,2647.4,2647.2,3.2078]
[1740427392728,3.34039645,2647.7,2646.9,3.2078]
[1740427393030,0.75551,2647.2,2647.0,3.347]
[1740427393231,3.34039645,2647.7,2647.0,3.347]
[1740427393535,3.2078,2647.7,2647.2,0.75549]
[1740427393733,0.75542,2647.5,2647.2,0.75547]
[1740427393928,3.2078,2647.7,2647.0,3.347]
[1740427394135,3.2078,2647.7,2647.2,0.75548]
[1740427394437,1.88829,2647.9,2647.0,3.347]
[1740427394737,3.2078,2648.0,2647.4,3.2078]
[1740427394936,0.75539,2647.6,2647.5,3.347]
[1740427396237,0.75538,2647.6,2647.5,3.347]
[1740427398037,0.7555,2647.2,2647.1,3.2078]
[1740427398237,0.7555,2647.2,2647.1,3.347]
[1740427398435,3.2078,2647.4,2646.6,3.2078]
[1740427398634,3.2078,2647.4,2646.6,3.347]
[1740427398635,0.75564,2646.7,2646.6,3.347]
[1740427399235,3.2078,2646.8,2646.3,3.21346904]
[1740427399440,0.75572,2646.4,2646.3,6.55946904]
[1740427399644,3.2078,2646.8,2646.3,6.55946904]
[1740427399941,1.88884,2647.1,2646.3,8.44880904]
[1740427400135,0.75572,2646.4,2646.3,7.31520904]
[1740427400335,0.75568,2646.6,2646.5,0.75568]
[1740427400731,1.1918,2647.2,2646.3,6.55946904]
[1740427401034,1.1684,2647.6,2647.1,3.2078]
[1740427401233,1.1684,2647.6,2647.2,3.346]
[1740427401234,0.75547,2647.3,2647.2,3.346]